fUST/lending_fUST_20240724
["ID","MTS","AMOUNT","RATE_DAILY","PERIOD"]
[333060174,1721794042228,-300.0,0.0001367,2]
[333060175,1721794042251,-1000.0,0.00013671,2]
[333060176,1721794042274,-1000.0,0.00013671,2]
[333060177,1721794042297,-973.19174236,0.00013679,2]
[333060178,1721794042335,-26.80825764,0.00013679,2]
[333060179,1721794042357,-1000.0,0.00013687,2]
[333060180,1721794042383,-954.61793949,0.00013688,2]
[333060267,1721794243019,-3289.3312697,0.00012692,2]
[333060268,1721794243029,-760.20658413,0.00013598,2]
[333060269,1721794243039,-300.0,0.00013688,2]
[333060270,1721794243050,-2035.76588796,0.00013688,2]
[333060271,1721794243059,-1000.0,0.00013691,2]
[333060272,1721794243069,-1000.0,0.00013692,2]
[333060273,1721794243081,-258.82237,0.00013698,2]
[333060274,1721794243092,-1007.46330168,0.00013698,2]
[333060275,1721794243101,-201.44758,0.00013698,2]
[333060277,1721794243111,-500.0,0.00013698,2]
[333060278,1721794243122,-500.0,0.00013698,2]
[333060279,1721794243132,-500.0,0.00013698,2]
[333060280,1721794243142,-500.0,0.00013698,2]
[333060281,1721794243152,-500.0,0.00013698,2]
[333060282,1721794243162,-500.0,0.00013698,2]
[333060283,1721794243170,-500.0,0.00013698,2]
[333060284,1721794243180,-500.0,0.00013698,2]
[333060285,1721794243189,-501.22068787,0.00013698,2]
[333060286,1721794243198,-500.0,0.00013698,2]
[333060287,1721794243207,-500.0,0.00013698,2]
[333060288,1721794243216,-500.0,0.00013698,2]
[333060289,1721794243226,-503.77700133,0.00013698,2]
[333060290,1721794243235,-247.20075316,0.00013698,2]
[333060291,1721794243245,-500.0,0.00013698,2]
[333060292,1721794243256,-500.0,0.00013698,2]
[333060293,1721794243265,-500.0,0.00013698,2]
[333060294,1721794243277,-501.34573133,0.00013698,2]
[333060295,1721794243289,-500.0,0.00013698,2]
[333060296,1721794243300,-500.0,0.00013698,2]
[333060297,1721794243313,-500.0,0.00013698,2]
[333060298,1721794243323,-500.0,0.00013698,2]
[333060299,1721794243334,-500.0,0.00013698,2]
[333060300,1721794243345,-500.0,0.00013698,2]
[333060301,1721794243355,-500.0,0.00013698,2]
[333060302,1721794243364,-189.39813913,0.00013698,2]
[333060304,1721794246011,-311.68968242,0.00013698,2]
[333060305,1721794246022,-616.59,0.00013698,2]
[333060306,1721794246032,-500.0,0.00013698,2]
[333060307,1721794246042,-574.78788849,0.00013698,2]
[333060308,1721794246053,-500.0,0.00013698,2]
[333060309,1721794246065,-1629.8,0.00013698,2]
[333060310,1721794246076,-500.0,0.00013698,2]
[333060311,1721794246086,-500.0,0.00013698,2]
[333060312,1721794246097,-500.0,0.00013698,2]
[333060313,1721794246108,-512.44068649,0.00013698,2]
[333060315,1721794246120,-500.0,0.00013698,2]
[333060316,1721794246131,-500.0,0.00013698,2]
[333060317,1721794246143,-500.0,0.00013698,2]
[333060318,1721794246154,-501.16861002,0.00013698,2]
[333060319,1721794246165,-317.15240872,0.00013698,2]
[333060322,1721795235137,-200.0,0.00013425,2]
[333060323,1721795235162,-1000.0,0.00013601,2]
[333060324,1721795235189,-761.76641828,0.00013651,2]
[333060325,1721795242138,-238.23358172,0.00013651,2]
[333060326,1721795242160,-3540.0361218,0.00013688,2]
[333060327,1721795242184,-590.0060203,0.00013691,2]
[333060328,1721795242205,-1000.0,0.00013695,2]
[333060329,1721795242228,-300.0,0.00013697,2]
[333060330,1721795242251,-478.39939361,0.00013698,2]
[333060331,1721795242274,-500.0,0.00013698,2]
[333060332,1721795242296,-535.86720726,0.00013698,2]
[333060333,1721795242318,-500.0,0.00013698,2]
[333060334,1721795242341,-500.0,0.00013698,2]
[333060335,1721795242365,-215.65333614,0.00013698,2]
[333060336,1721795247116,-284.34666386,0.00013698,2]
[333060337,1721795247138,-501.11110698,0.00013698,2]
[333060338,1721795247158,-508.56279323,0.00013698,2]
[333060339,1721795247180,-500.0,0.00013698,2]
[333060340,1721795247201,-500.0,0.00013698,2]
[333060341,1721795247222,-502.02808241,0.00013698,2]
[333060342,1721795247244,-500.0,0.00013698,2]
[333060343,1721795247265,-500.0,0.00013698,2]
[333060344,1721795247287,-500.0,0.00013698,2]
[333060345,1721795247309,-590.9,0.00013698,2]
[333060346,1721795247332,-500.0,0.00013698,2]
[333060347,1721795247353,-1561.9,0.00013698,2]
[333060348,1721795247377,-500.0,0.00013698,2]
[333060349,1721795247402,-500.0,0.00013698,2]
[333060350,1721795247425,-500.0,0.00013698,2]
[333060351,1721795247447,-25.54423119,0.00013698,2]
[333060352,1721795248103,-474.45576881,0.00013698,2]
[333060353,1721795248127,-500.0,0.00013698,2]
[333060354,1721795248147,-500.0,0.00013698,2]
[333060355,1721795248168,-182.84759128,0.00013698,2]
[333060356,1721795248191,-220.98056103,0.00013698,2]
[333060454,1721795876993,5076.42535083,0.00013698,14]
[333060455,1721795983991,5076.42535083,0.00013698,14]
[333060456,1721796034771,-154.80649189,0.0001,2]
[333060457,1721796048593,-154.72922386,0.0001,2]
[333060458,1721796049846,-645.73243684,9.999e-05,2]
[333060459,1721796059995,5076.42535083,0.00013698,14]
[333060461,1721796175113,5076.42535083,0.00013698,14]
[333060462,1721796242735,500.0,0.0001367,7]
[333060463,1721796255902,5076.42535083,0.00013698,14]
[333060464,1721796270898,5076.42535083,0.00013698,14]
[333060465,1721796366408,5076.42535083,0.00013698,14]
[333060467,1721796425127,-250.0,0.00012641,2]
[333060468,1721796425152,-300.0,0.00012644,2]
[333060469,1721796425175,-3399.63506305,0.00012645,2]
[333060470,1721796431135,-8471.12,0.00012645,2]
[333060471,1721796437109,-315.60069765,0.00012645,2]
[333060472,1721796437134,-200.0,0.00013425,2]
[333060473,1721796437157,-1235.527,0.00013426,2]
[333060474,1721796437181,-165.296798,0.00013453,2]
[333060475,1721796437204,-171.301765,0.00013453,2]
[333060476,1721796437230,-263.559115,0.00013453,2]
[333060477,1721796437255,-218.008271,0.00013453,2]
[333060478,1721796437279,-157.225884,0.00013453,2]
[333060479,1721796437303,-1221.64705006,0.00013474,2]
[333060480,1721796446109,-3479.80765834,0.00013474,2]
[333060481,1721796446133,-193.38542196,0.00013598,2]
[333060482,1721796446159,-500.0,0.000136,4]
[333060483,1721796446180,-500.0,0.000136,5]
[333060484,1721796446204,-1000.0,0.00013643,2]
[333060485,1721796446225,-367.35615468,0.00013666,2]
[333060486,1721796446247,-1000.0,0.00013674,2]
[333060487,1721796446268,-165.296798,0.00013677,2]
[333060488,1721796446288,-965.30567573,0.00013682,2]
[333060489,1721796463514,5076.42535083,0.00013682,14]
[333060495,1721796569458,2021.26498813,0.00013682,14]
[333060496,1721796601716,498.57120945,9.999e-05,2]
[333060497,1721796625753,1082.13327507,9.999e-05,2]
[333060498,1721796625777,1670.4904,9.999e-05,2]
[333060499,1721796625799,1653.60068702,9.999e-05,2]
[333060500,1721796625823,308.43232486,9.999e-05,2]
[333060554,1721796632259,-200.0,0.00013425,2]
[333060556,1721796632271,-1000.0,0.00013467,2]
[333060558,1721796632282,-1000.0,0.00013556,2]
[333060560,1721796632294,-1000.0,0.00013623,2]
[333060563,1721796632306,-300.0,0.00013681,2]
[333060565,1721796632319,-34.69432427,0.00013682,2]
[333060567,1721796632330,-225.04706201,0.00013682,2]
[333060569,1721796632342,-11767.32864299,0.00013682,2]
[333060572,1721796632356,-3055.1603627,0.00013682,14]
[333060574,1721796632365,-151.0,0.00013688,2]
[333060576,1721796632375,-151.0,0.00013688,2]
[333060578,1721796632385,-151.0,0.00013688,2]
[333060580,1721796632395,-151.0,0.00013688,2]
[333060582,1721796632405,-151.0,0.00013688,2]
[333060584,1721796632415,-151.0,0.00013688,2]
[333060586,1721796632424,-151.0,0.00013688,2]
[333060588,1721796632436,-1647.75479196,0.00013688,2]
[333060641,1721796633807,887.31675178,0.0001212,2]
[333060642,1721796633849,480.60092336,9.999e-05,2]
[333060643,1721796633872,1675.78735574,9.999e-05,2]
[333060644,1721796633898,1661.0,9.999e-05,2]
[333060645,1721796635910,5076.42535083,9.999e-05,14]
[333060656,1721796638284,-1750.99122281,9.999e-05,2]
[333060657,1721796638294,-318.07462538,0.0001212,2]
[333060659,1721796638304,-154.98506355,0.0001212,2]
[333060661,1721796638314,-9253.2370878,0.00013688,2]
[333060671,1721796638463,-10707.47631204,0.00013688,2]
[333060674,1721796638490,-1223.2809768,0.00013688,2]
[333060676,1721796638500,-123.2190232,0.00013689,2]
[333060756,1721796646493,-310.77931298,0.00013689,2]
[333060757,1721796736105,200.0,0.0001,10]
[333060758,1721796815457,4671.9336478,0.0001,14]
[333060761,1721797628139,-300.0,9.998e-05,2]
[333060762,1721797628164,-154.76012181,9.999e-05,2]
[333060763,1721797628188,-531.21907352,9.999e-05,2]
[333060764,1721797628209,-223.90621696,9.999e-05,2]
[333060765,1721797628231,-160.37691106,9.999e-05,2]
[333060766,1721797628251,-567.88989652,9.999e-05,2]
[333060767,1721797628273,-155.443405,9.999e-05,2]
[333060768,1721797628295,-518.96291688,9.999e-05,2]
[333060769,1721797628315,-154.92212752,9.999e-05,2]
[333060770,1721797628336,-154.76012181,9.999e-05,2]
[333060771,1721797628357,-154.76012181,9.999e-05,2]
[333060772,1721797628378,-240.57760982,9.999e-05,2]
[333060773,1721797628399,-249.1593504,9.999e-05,2]
[333060774,1721797628421,-156.5852552,9.999e-05,2]
[333060775,1721797628443,-778.87203636,9.999e-05,2]
[333060776,1721797628464,-663.44744723,9.999e-05,2]
[333060777,1721797628484,-154.72922386,9.999e-05,2]
[333060778,1721797628505,-180.53889489,9.999e-05,2]
[333060779,1721797628526,-155.89399445,9.999e-05,2]
[333060780,1721797628546,-159.9761619,9.999e-05,2]
[333060781,1721797628566,-413.45280147,9.999e-05,2]
[333060782,1721797628586,-85.31425826,9.999e-05,2]
[333060783,1721797646132,-69.44586355,9.999e-05,2]
[333060784,1721797646154,-257.11009074,9.999e-05,2]
[333060785,1721797746123,-146.14043555,9.999e-05,2]
[333060786,1721797746148,-162.87421769,9.999e-05,2]
[333060787,1721797746169,-404.3074502,9.999e-05,2]
[333060788,1721797746190,-156.50667326,9.999e-05,2]
[333060789,1721797746211,-240.4541076,9.999e-05,2]
[333060790,1721797746238,-154.94618827,9.999e-05,2]
[333060791,1721797746260,-300.0,0.00011514,2]
[333060792,1721797746282,-24900.0,0.00011515,2]
[333060793,1721797746305,-175.555435,0.00011965,2]
[333060794,1721797746328,-175.555435,0.00012054,2]
[333060795,1721797746350,-524.82337153,0.0001212,2]
[333060796,1721797746371,-1392.83853686,0.0001212,2]
[333060797,1721797746393,-175.555435,0.00012143,2]
[333060798,1721797746414,-423.6373889,0.000122,2]
[333060799,1721797746436,-175.555435,0.00012233,2]
[333060800,1721797746458,-175.555435,0.00012322,2]
[333060801,1721797758200,155.70429949,0.0001212,2]
[333060802,1721797761092,-175.555435,0.00012411,2]
[333060803,1721797761114,-175.555435,0.000125,2]
[333060934,1721797838517,-175.555435,0.00012583,2]
[333060935,1721797838528,-151.0,0.00013246,2]
[333060936,1721797838537,-4701.4547085,0.00013275,2]
[333060937,1721797838547,-151.0,0.00013278,2]
[333060938,1721797838557,-151.0,0.00013278,2]
[333060939,1721797838567,-151.0,0.00013278,2]
[333060940,1721797838577,-151.0,0.00013278,2]
[333060941,1721797838587,-151.0,0.00013287,2]
[333060942,1721797838597,-151.0,0.00013287,2]
[333060943,1721797838606,-151.0,0.00013287,2]
[333060944,1721797838617,-151.0,0.00013304,2]
[333060945,1721797838627,-220.048518,0.00013304,2]
[333060946,1721797838637,-1000.0,0.00013418,2]
[333060947,1721797838646,-1000.0,0.00013424,2]
[333060948,1721797838656,-151.0,0.00013424,2]
[333060949,1721797838666,-151.0,0.00013424,2]
[333060950,1721797838676,-151.0,0.00013424,2]
[333060951,1721797838686,-151.0,0.00013424,2]
[333060952,1721797838696,-200.0,0.00013425,2]
[333060953,1721797838706,-151.0,0.00013425,2]
[333060954,1721797838717,-151.0,0.00013425,2]
[333060955,1721797838727,-1000.0,0.00013428,2]
[333060956,1721797838736,-1000.0,0.00013429,2]
[333060957,1721797838746,-1000.0,0.00013431,2]
[333060958,1721797838755,-1000.0,0.0001344,2]
[333060959,1721797838764,-151.0,0.00013454,2]
[333060960,1721797838774,-1000.0,0.00013457,2]
[333060961,1721797838785,-1000.0,0.00013461,2]
[333060962,1721797838794,-1000.0,0.00013471,2]
[333060963,1721797838805,-1000.0,0.00013495,2]
[333060964,1721797838815,-151.0,0.00013495,2]
[333060965,1721797838826,-1000.0,0.00013504,2]
[333060966,1721797838836,-1000.0,0.00013511,2]
[333060967,1721797838846,-151.0,0.00013511,2]
[333060968,1721797838856,-151.0,0.00013511,2]
[333060969,1721797838866,-151.0,0.00013511,2]
[333060970,1721797838875,-151.0,0.00013511,2]
[333060971,1721797838885,-151.0,0.00013511,2]
[333060972,1721797838894,-1000.0,0.00013513,2]
[333060973,1721797838904,-300.0,0.00013527,2]
[333060974,1721797838914,-300.0,0.00013545,2]
[333060975,1721797838924,-1000.0,0.00013553,2]
[333060976,1721797838935,-1000.0,0.00013558,2]
[333060977,1721797838947,-473.19174236,0.00013559,2]
[333060978,1721797838957,-1000.0,0.00013564,2]
[333060979,1721797838967,-151.0,0.00013564,2]
[333060980,1721797838977,-151.0,0.00013564,2]
[333060981,1721797838987,-151.0,0.00013564,2]
[333060982,1721797838996,-151.0,0.00013564,2]
[333060983,1721797839006,-975.80890608,0.00013566,2]
[333060984,1721797839015,-300.0,0.00013572,2]
[333060985,1721797839026,-1000.0,0.00013579,2]
[333060986,1721797839035,-1000.0,0.00013581,2]
[333060987,1721797839045,-151.0,0.00013581,2]
[333060988,1721797839055,-151.0,0.00013581,2]
[333060989,1721797839064,-151.0,0.00013581,2]
[333060990,1721797839074,-36.81355266,0.00013581,2]
[333061001,1721797841404,-114.18644734,0.00013581,2]
[333061002,1721797841414,-320.5071951,0.00013586,2]
[333061003,1721797841425,-1000.0,0.00013589,2]
[333061004,1721797841436,-177.0199316,0.00013597,2]
[333061005,1721797841445,-1000.0,0.00013605,2]
[333061006,1721797841455,-1000.0,0.00013605,2]
[333061007,1721797841465,-151.0,0.00013605,2]
[333061008,1721797841476,-1000.0,0.00013608,2]
[333061009,1721797841486,-244.182158,0.00013608,2]
[333061010,1721797841495,-151.0,0.00013608,2]
[333061011,1721797841505,-151.0,0.00013608,2]
[333061012,1721797841516,-151.0,0.00013608,2]
[333061013,1721797841528,-344.84542457,0.00013615,2]
[333061014,1721797841538,-151.0,0.00013633,2]
[333061015,1721797841548,-151.0,0.00013633,2]
[333061016,1721797841558,-151.0,0.00013633,2]
[333061017,1721797841567,-300.07765877,0.00013639,2]
[333061018,1721797841577,-151.0,0.00013641,2]
[333061019,1721797841588,-1000.0,0.00013641,2]
[333061020,1721797841597,-151.0,0.00013641,2]
[333061021,1721797841607,-300.0,0.00013641,2]
[333061022,1721797841616,-1000.0,0.00013647,2]
[333061023,1721797841626,-151.0,0.00013647,2]
[333061024,1721797841635,-151.0,0.00013647,2]
[333061025,1721797841645,-151.0,0.00013647,2]
[333061026,1721797841655,-1409.0,0.00013655,2]
[333061027,1721797841665,-1000.0,0.00013674,2]
[333061028,1721797841676,-1000.0,0.0001368,2]
[333061029,1721797841689,-151.0,0.00013688,2]
[333061030,1721797841698,-151.0,0.00013688,2]
[333061031,1721797841710,-151.0,0.00013688,2]
[333061032,1721797841720,-151.0,0.00013688,2]
[333061033,1721797841731,-151.0,0.00013688,2]
[333061034,1721797841741,-151.0,0.00013688,2]
[333061035,1721797841752,-151.0,0.00013688,2]
[333061036,1721797841762,-151.0,0.00013688,2]
[333061037,1721797841774,-151.0,0.00013688,2]
[333061038,1721797841785,-165.408866,0.00013688,2]
[333061039,1721797841795,-13236.65714753,0.00013688,2]
[333061050,1721797843604,-5498.17743967,0.00013688,2]
[333061058,1721797862580,928.55902457,9.999e-05,2]
[333061060,1721797913085,734.20129027,0.0001212,2]
[333061061,1721797913108,39.59789687,0.0001212,2]
[333061063,1721798829148,-773.79918714,9.999e-05,2]
[333061064,1721798829170,-792.73163086,0.0001212,2]
[333061065,1721798842091,-703.33734539,0.0001212,2]
[333061066,1721798845812,-609.4056805,0.0001212,2]
[333061067,1721798845844,-906.85841019,0.00012231,2]
[333061068,1721798846093,-10147.66287767,0.00012231,2]
[333061073,1721798945108,-2840.27723774,0.00012231,2]
[333061076,1721798970649,403.1493765,9.999e-05,2]
[333061077,1721798991769,1200.60661425,0.0001,7]
[333061078,1721798991792,1517.38129294,0.0001,7]
[333061079,1721798991815,1672.98517336,0.0001,7]
[333061080,1721798991838,1653.60068702,0.0001,7]
[333061081,1721798991861,1135.42623243,0.0001,7]
[333061082,1721799010674,403.1493765,0.0001212,2]
[333061116,1721799032816,-323.60291165,0.00012698,2]
[333061247,1721799043764,-176.39708835,0.00012698,2]
[333061248,1721799043775,-500.0,0.00012698,2]
[333061249,1721799043785,-500.0,0.00012698,2]
[333061250,1721799043796,-500.0,0.00012698,2]
[333061251,1721799043807,-500.0,0.00012698,2]
[333061252,1721799043818,-159.34491179,0.00012698,2]
[333061253,1721799043832,-340.65508821,0.00012698,2]
[333061254,1721799043842,-246.02063649,0.00012698,2]
[333061255,1721799043855,-253.97936351,0.00012698,2]
[333061256,1721799043866,-500.0,0.00012698,2]
[333061257,1721799043877,-153.44,0.00012698,2]
[333061258,1721799043888,-200.0,0.00013425,2]
[333061259,1721799043899,-127.64063649,0.00013453,2]
[333061260,1721799043919,-29.58524751,0.00013453,2]
[333061261,1721799043930,-5733.85439821,0.00013688,2]
[333061265,1721799053300,136.75811996,0.0001212,2]
[333061266,1721799053324,69.91043926,0.0001212,2]
[333061267,1721799060657,403.1493765,0.0001212,2]
[333061269,1721799104778,413.45473308,9.999e-05,2]
[333061271,1721799128664,392.40605053,9.999e-05,2]
[333061275,1721800026100,-403.1493765,9.999e-05,2]
[333061276,1721800026121,-248.55592852,9.999e-05,2]
[333061277,1721800026143,-184.04,0.00010959,2]
[333061278,1721800026167,-4267.1821555,0.00011996,2]
[333061279,1721800026188,-200.4627895,0.00012012,2]
[333061280,1721800026215,-162.171583,0.00012366,2]
[333061281,1721800026237,-162.171583,0.00012419,2]
[333061282,1721800026258,-162.171583,0.00012473,2]
[333061283,1721800026280,-162.171583,0.00012527,2]
[333061284,1721800026302,-162.171583,0.00012581,2]
[333061285,1721800026325,-162.171583,0.00012634,2]
[333061286,1721800026348,-162.171583,0.00012688,2]
[333061287,1721800026372,-162.171583,0.00012742,2]
[333061288,1721800026393,-162.171583,0.00012795,2]
[333061289,1721800026419,-162.171583,0.00012849,2]
[333061290,1721800026442,-162.171583,0.00012903,2]
[333061291,1721800026465,-162.171583,0.00012956,2]
[333061292,1721800026487,-162.171583,0.0001301,2]
[333061293,1721800026509,-206.6937542,0.00013151,2]
[333061294,1721800026530,-362.24394191,0.00013212,2]
[333061295,1721800026552,-190.59318358,0.00013232,2]
[333061296,1721800036125,-109.40681642,0.00013232,2]
[333061297,1721800036148,-49.12693021,0.00013233,2]
[333061298,1721800152407,-403.1493765,9.999e-05,2]
[333061299,1721800152431,-200.0,0.0001,2]
[333061301,1721800210977,308.43232486,0.0001,2]
[333061303,1721800225064,1394.07767514,0.0001,2]
[333061304,1721800225086,762.31060396,0.0001,2]
[333061305,1721800226612,908.17979604,9.999e-05,2]
[333061306,1721800226633,60.04338206,9.999e-05,2]
[333061319,1721800231907,-157.56682399,0.00013233,2]
[333061320,1721800231920,-206.6937542,0.00013233,2]
[333061321,1721800231932,-206.6937542,0.00013233,2]
[333061322,1721800231945,-206.6937542,0.00013233,2]
[333061323,1721800231957,-335.2132189,0.00013233,2]
[333061324,1721800231968,-6717.60255291,0.00013233,2]
[333061325,1721800231979,-4392.32419911,0.00013271,2]
[333061326,1721800231990,-206.6937542,0.000133,2]
[333061327,1721800232003,-153.0,0.000133,2]
[333061328,1721800232014,-306.4144883,0.000133,2]
[333061329,1721800232026,-153.0,0.000133,2]
[333061330,1721800232042,-206.6937542,0.000133,2]
[333061331,1721800232053,-153.0,0.000134,2]
[333061332,1721800232063,-154.1044328,0.000134,2]
[333061333,1721800232075,-206.6937542,0.000134,2]
[333061334,1721800232086,-153.0,0.000134,2]
[333061335,1721800232097,-206.6937542,0.000134,2]
[333061336,1721800232109,-153.0,0.000134,2]
[333061337,1721800232122,-206.6937542,0.000134,2]
[333061338,1721800232142,-200.0,0.00013425,2]
[333061339,1721800232153,-182.159337,0.00013453,2]
[333061340,1721800232165,-184.253258,0.00013453,2]
[333061341,1721800232177,-177.31939,0.00013453,2]
[333061342,1721800232190,-165.296801,0.00013453,2]
[333061343,1721800232201,-992.11393337,0.00013507,2]
[333061344,1721800232213,-1851.91077798,0.00013588,2]
[333061345,1721800232224,-1000.0,0.00013593,2]
[333061346,1721800232235,-1234.31772109,0.00013598,2]
[333061347,1721800232246,-193.38542196,0.00013598,2]
[333061348,1721800232257,-300.993157,0.000136,4]
[333061349,1721800232269,-184.253258,0.00013677,2]
[333061350,1721800232280,-177.31939,0.00013677,2]
[333061351,1721800232291,-11471.0028397,0.00013687,2]
[333061352,1721800232302,-151.0,0.00013688,2]
[333061353,1721800232317,-1000.0,0.00013688,2]
[333061354,1721800232328,-151.0,0.00013688,2]
[333061355,1721800232342,-151.0,0.00013688,2]
[333061356,1721800232356,-151.0,0.00013688,2]
[333061357,1721800232369,-151.0,0.00013688,2]
[333061358,1721800232384,-278.675298,0.00013688,2]
[333061359,1721800232396,-261.501172,0.00013688,2]
[333061360,1721800232407,-151.0,0.00013688,2]
[333061361,1721800232418,-151.0,0.00013688,2]
[333061362,1721800232429,-151.0,0.00013688,2]
[333061363,1721800232439,-151.0,0.00013688,2]
[333061364,1721800232451,-151.0,0.00013688,2]
[333061365,1721800232463,-151.0,0.00013688,2]
[333061366,1721800232475,-152.817736,0.00013688,2]
[333061367,1721800232487,-40148.509939,0.00013688,2]
[333061368,1721800232498,-11437.17337184,0.00013689,2]
[333061489,1721800238193,-33.82946786,0.00013689,2]
[333061490,1721800238203,-168.0,0.0001369,2]
[333061491,1721800238213,-1474.52053214,0.00013697,2]
[333061547,1721800309498,200.0,0.0001,2]
[333061566,1721801225146,-887.31675178,9.999e-05,2]
[333061567,1721801225172,-403.1493765,9.999e-05,2]
[333061568,1721801225198,-257.11009074,9.999e-05,2]
[333061569,1721801225222,-188.02900327,9.999e-05,2]
[333061570,1721801225246,-1428.56408637,0.0001,2]
[333061571,1721801227091,-241.92631363,0.0001,2]
[333061572,1721801227114,-84.62964066,0.00012698,2]
[333061573,1721801230317,-415.37035934,0.00012698,2]
[333061574,1721801230339,-362.24394192,0.00013176,2]
[333061575,1721801230361,-980.09573232,0.00013299,2]
[333061618,1721801433622,-175.555435,0.00012766,2]
[333061620,1721801433634,-75.26056499,0.00012987,2]
[333061623,1721801433648,-100.29487001,0.00012987,2]
[333061625,1721801433659,-175.555435,0.00013209,2]
[333061627,1721801433669,-1909.24465673,0.00013299,2]
[333061628,1721801433681,-200.0,0.00013425,2]
[333061629,1721801433692,-175.555435,0.00013431,2]
[333061630,1721801433702,-151.0,0.00013688,2]
[333061631,1721801433713,-151.0,0.00013688,2]
[333061632,1721801433723,-151.0,0.00013688,2]
[333061633,1721801433734,-151.0,0.00013688,2]
[333061634,1721801433745,-151.0,0.00013688,2]
[333061635,1721801433756,-151.0,0.00013688,2]
[333061636,1721801433767,-4884.27773638,0.00013697,2]
[333061661,1721801438108,-127.45114313,0.00013697,2]
[333061662,1721801438139,-3362.46,0.00013697,2]
[333061663,1721801438209,-122514.35261,0.00013697,2]
[333061664,1721801438219,-227.076581,0.00013697,2]
[333061665,1721801438229,-151.0,0.00013697,2]
[333061666,1721801438239,-202.145674,0.00013697,2]
[333061667,1721801438513,-151.0,0.00013697,2]
[333061668,1721801438537,-151.0,0.00013697,2]
[333061669,1721801438552,-151.0,0.00013697,2]
[333061670,1721801438562,-151.0,0.00013697,2]
[333061671,1721801438574,-222.69032,0.00013697,2]
[333061672,1721801438583,-375.91383194,0.00013698,2]
[333061673,1721801438593,-627.86876789,0.00013698,2]
[333061674,1721801438604,-500.0,0.00013698,2]
[333061675,1721801438614,-500.0,0.00013698,2]
[333061676,1721801438624,-500.0,0.00013698,2]
[333061677,1721801438633,-500.0,0.00013698,2]
[333061678,1721801438643,-500.0,0.00013698,2]
[333061679,1721801438652,-500.0,0.00013698,2]
[333061680,1721801438662,-507.41780141,0.00013698,2]
[333061681,1721801438672,-500.0,0.00013698,2]
[333061682,1721801438681,-505.39149835,0.00013698,2]
[333061683,1721801438691,-500.0,0.00013698,2]
[333061684,1721801438702,-500.0,0.00013698,2]
[333061685,1721801438712,-502.04888662,0.00013698,2]
[333061686,1721801438722,-500.0,0.00013698,2]
[333061687,1721801438732,-500.0,0.00013698,2]
[333061688,1721801438741,-500.0,0.00013698,2]
[333061689,1721801438752,-501.11110698,0.00013698,2]
[333061690,1721801438762,-508.56279323,0.00013698,2]
[333061691,1721801438772,-500.0,0.00013698,2]
[333061692,1721801438783,-500.0,0.00013698,2]
[333061693,1721801438794,-500.0,0.00013698,2]
[333061694,1721801438803,-500.0,0.00013698,2]
[333061695,1721801438813,-502.02808241,0.00013698,2]
[333061696,1721801438822,-505.42141396,0.00013698,2]
[333061697,1721801438831,-500.0,0.00013698,2]
[333061698,1721801438841,-500.0,0.00013698,2]
[333061699,1721801438851,-500.0,0.00013698,2]
[333061700,1721801438861,-570.3027067,0.00013698,2]
[333061701,1721801438872,-270.84,0.00013698,2]
[333061702,1721801438885,-500.0,0.00013698,2]
[333061703,1721801438896,-500.0,0.00013698,2]
[333061704,1721801438905,-500.0,0.00013698,2]
[333061705,1721801438915,-662.75,0.00013698,2]
[333061706,1721801438925,-500.0,0.00013698,2]
[333061707,1721801438935,-190.3705009,0.00013698,2]
[333061708,1721801438945,-500.0,0.00013698,2]
[333061709,1721801438954,-500.0,0.00013698,2]
[333061710,1721801438964,-500.0,0.00013698,2]